bitfinex-derivatives/quotes_BTCF0:USTF0_20251120
["timestamp","ask_amount","ask_price","bid_price","bid_amount"]
[1763647553827,0.10776,91017.0,91012.0,0.19252803]
[1763647554027,0.10776,91019.0,91012.0,0.19252803]
[1763647554439,0.118758,91019.0,91012.0,0.19252803]
[1763647554633,0.10776,91019.0,91012.0,0.19252803]
[1763647555034,0.0109986,91014.0,91012.0,0.19252803]
[1763647555635,0.00016483,91022.0,91021.0,0.2013277]
[1763647555937,0.3608,91031.0,91030.0,0.19033]
[1763647556127,0.3608,91031.0,91030.0,0.19252803]
[1763647556530,0.3608,91049.0,91030.0,0.00219803]
[1763647556733,0.36096483,91049.0,91048.0,0.19033]
[1763647556930,0.36096483,91049.0,91048.0,0.19252803]
[1763647557529,0.00016483,91049.0,91048.0,0.55332803]
[1763647557938,0.00116483,91049.0,91048.0,0.55332803]
[1763647558342,0.00116483,91049.0,90990.0,0.7708329]
[1763647558343,0.0109952,91042.0,91030.0,0.36096483]
[1763647558536,0.0109962,91035.0,91031.0,0.00219803]
[1763647558732,0.18495,91032.0,91031.0,0.00219803]
[1763647558933,0.54575,91040.0,91031.0,0.00219803]
[1763647559136,0.09363,91035.0,91034.0,0.0109961]
[1763647559337,0.0109945,91048.0,91040.0,0.0109954]
[1763647559538,0.1046245,91048.0,91047.0,0.00219803]
[1763647559935,0.1959445,91048.0,91047.0,0.00219803]
[1763647560338,0.18495,91048.0,91047.0,0.00219803]
[1763647560639,0.00016483,91049.0,91048.0,0.19033]
[1763647560846,0.3608,91073.0,91059.0,0.19033]
[1763647561136,0.3608,91073.0,91072.0,0.19033]
[1763647561333,0.3608,91073.0,91072.0,0.19252803]
[1763647561536,0.18495,91062.0,91047.0,0.0109945]
[1763647561727,0.010993,91061.0,91057.0,0.00219803]
[1763647561931,0.3717927,91063.0,91057.0,0.00219803]
[1763647562238,0.3608,91063.0,91062.0,0.17758]
[1763647562442,0.3608,91063.0,91062.0,0.17977803]
[1763647563330,0.00016474,91064.0,91063.0,0.17758]
[1763647563543,0.00016474,91064.0,91063.0,0.17977803]
[1763647563845,0.3608,91090.0,91085.0,0.18857]
[1763647564032,0.3608,91099.0,91085.0,0.54057803]
[1763647564552,0.08100447,91086.0,91085.0,0.00219803]
[1763647564840,0.00027447,91086.0,91085.0,0.17977803]
[1763647565546,0.36107447,91086.0,91085.0,0.17977803]
[1763647565839,0.00027447,91086.0,91085.0,0.17977803]
[1763647568639,0.010991,91077.0,91076.0,0.08393474]
[1763647568945,0.36107447,91086.0,91076.0,0.08613277]
[1763647569140,0.36107447,91086.0,91085.0,0.17758]
[1763647569340,0.00027447,91086.0,91085.0,0.54057803]
[1763647569548,0.00027447,91086.0,91085.0,0.17977803]
[1763647569738,0.00027447,91086.0,91085.0,0.19076803]
[1763647569936,0.00027447,91086.0,91085.0,0.55156803]
[1763647570141,0.00016474,91095.0,91094.0,0.17758]
[1763647570442,0.00016474,91095.0,91094.0,0.17977803]
[1763647570642,0.00016474,91095.0,91094.0,0.54057803]
[1763647571642,0.08073,91077.0,91076.0,0.00016474]
[1763647571841,0.42489354,91095.0,91057.0,0.3608]
[1763647571842,0.3608,91078.0,91057.0,0.3608]
[1763647572044,0.0109921,91068.0,91058.0,0.01319123]
[1763647572231,0.0109913,91074.0,91061.0,0.0109929]
[1763647572544,0.010991,91077.0,91073.0,0.00219803]
[1763647573143,0.3608,91078.0,91073.0,0.00219803]
[1763647573446,0.00016474,91084.0,91077.0,0.17758]
[1763647573745,0.00016474,91084.0,91083.0,0.17977803]
[1763647574834,0.00016474,91084.0,91061.0,0.3608]
[1763647574835,0.53567474,91084.0,91061.0,0.3608]
[1763647575040,0.0109921,91069.0,91066.0,0.00089741]
[1763647575240,0.00219803,91067.0,91066.0,0.08466741]
[1763647575436,0.00219803,91067.0,91066.0,0.17847741]
[1763647577348,0.3608,91074.0,91066.0,0.17847741]
[1763647577349,0.3608,91074.0,91073.0,0.1885715]
[1763647577652,0.36299803,91074.0,91073.0,0.17831267]
[1763647577842,0.53770803,91074.0,91073.0,0.00073267]
[1763647578254,0.00219803,91074.0,91073.0,0.17831267]
[1763647578645,0.36096474,91084.0,91083.0,0.08377]
[1763647578945,0.36316277,91084.0,91083.0,0.17831267]
[1763647580349,0.36316277,91084.0,91083.0,0.00073267]
[1763647580350,0.44389277,91084.0,91083.0,0.00073267]
[1763647581148,0.36316277,91084.0,91083.0,0.17831267]
[1763647581348,0.00236277,91084.0,91083.0,0.17831267]
[1763647581562,0.00016474,91084.0,91083.0,0.17831267]
[1763647581855,0.3608,91106.0,91083.0,0.00073267]
[1763647582038,0.0109887,91097.0,91096.0,0.17758]
[1763647582238,0.18789673,91097.0,91096.0,0.00073267]
[1763647582945,0.54869673,91097.0,91087.0,0.00016474]
[1763647583146,0.5464996,91088.0,91087.0,0.00089741]
[1763647583348,0.54869763,91088.0,91087.0,0.00089741]
[1763647583744,0.0639307,91080.0,91051.0,0.3608]
[1763647583947,0.3608,91077.0,91065.0,0.17758]
[1763647584152,0.3608,91077.0,91052.0,0.010994]
[1763647584153,0.00219803,91076.0,91075.0,0.17758]
[1763647585158,0.00016474,91085.0,91073.0,0.0109914]
[1763647585159,0.00016474,91085.0,91084.0,0.08377]
[1763647585346,0.02901127,91085.0,91084.0,0.08377]
[1763647585655,0.00236277,91085.0,91084.0,0.17758]
[1763647586042,0.00016474,91085.0,91084.0,0.17758]
[1763647586447,0.00236277,91085.0,91084.0,0.17758]
[1763647587555,0.00016474,91085.0,91084.0,0.17758]
[1763647588345,0.19493883,91193.0,91084.0,0.17758]
[1763647588346,0.010987,91111.0,91104.0,0.0109877]
[1763647588550,0.02888809,91106.0,91105.0,0.08377]
[1763647588852,0.02888809,91106.0,91105.0,0.17758]
[1763647589852,0.0109881,91101.0,91096.0,0.36096464]
[1763647590053,0.00219803,91097.0,91096.0,0.50870464]
[1763647590254,0.0109881,91102.0,91096.0,0.50870464]
[1763647590460,0.02890182,91101.0,91100.0,0.07434]
[1763647591053,0.02890182,91101.0,91100.0,0.14774]
[1763647591460,0.001,91107.0,91106.0,0.1587275]
[1763647591651,0.00219803,91107.0,91106.0,0.14774]
[1763647592251,0.36096464,91115.0,91114.0,0.15185]
[1763647592559,0.02906631,91115.0,91114.0,0.15185]
[1763647592857,0.1911742,91115.0,91104.0,0.3608]
[1763647593057,0.16446917,91115.0,91104.0,0.3608]
[1763647593258,0.00016464,91115.0,91114.0,0.1628365]
[1763647593451,0.00027435,91126.0,91125.0,0.15185]
[1763647593648,0.05294,91155.0,91148.0,0.0109823]
[1763647593850,0.02890777,91152.0,91151.0,0.15185]
[1763647594055,0.18002777,91152.0,91142.0,0.3608]
[1763647594263,0.15112,91143.0,91128.0,0.0109847]
[1763647594560,0.010984,91135.0,91126.0,0.00016464]
[1763647594750,0.00219803,91127.0,91126.0,0.15201464]
[1763647595859,0.00219803,91127.0,91126.0,0.07315464]
[1763647596257,0.00219803,91127.0,91126.0,0.15201464]
[1763647596450,0.36096464,91145.0,91144.0,0.15185]
[1763647596652,0.3898022,91145.0,91144.0,0.15185]
[1763647597255,0.36316267,91145.0,91144.0,0.15185]
[1763647597458,0.36316267,91145.0,91134.0,0.3608]
[1763647597459,0.37414547,91145.0,91134.0,0.3717841]
[1763647597658,0.36316267,91145.0,91134.0,0.3608]
[1763647597956,0.36316267,91145.0,91138.0,0.0109836]
[1763647598150,0.36316267,91145.0,91135.0,0.010984]
[1763647598352,0.37414547,91145.0,91144.0,0.07299]
[1763647598654,0.37414547,91145.0,91126.0,0.00016464]
[1763647598655,0.37414557,91145.0,91126.0,0.00016464]
[1763647598854,0.36316267,91145.0,91144.0,0.07299]
[1763647599055,0.36316267,91145.0,91144.0,0.15185]
[1763647599257,0.36316267,91145.0,91144.0,0.1628329]
[1763647599558,0.00016464,91145.0,91144.0,0.1628329]
[1763647600354,0.00016464,91145.0,91140.0,0.3608]
[1763647600355,0.36107423,91166.0,91165.0,0.1628304]
[1763647600655,0.36327226,91166.0,91165.0,0.1628304]
[1763647600861,0.00027423,91166.0,91165.0,0.1628304]
[1763647601059,0.3608,91178.0,91177.0,0.15185]
[1763647601355,0.36299803,91178.0,91177.0,0.15185]
[1763647601560,0.000104,91187.0,91186.0,0.15185]
[1763647601862,0.000104,91187.0,91168.0,0.04701454]
[1763647601863,0.07612,91178.0,91170.0,0.10752]
[1763647602154,0.000104,91187.0,91186.0,0.15185]
[1763647602360,0.00230203,91187.0,91186.0,0.15185]
[1763647602564,0.00230203,91187.0,91171.0,0.04685]
[1763647602750,0.00230203,91187.0,91180.0,0.0109785]
[1763647602951,0.00230203,91187.0,91171.0,0.04685]
[1763647603264,0.00230203,91187.0,91186.0,0.15185]
[1763647603761,0.00230203,91187.0,91172.0,0.0109794]
[1763647603958,0.00230203,91187.0,91175.0,0.0109791]
[1763647604355,0.07612,91172.0,91169.0,0.3608]
[1763647604563,0.00219803,91170.0,91169.0,0.3608]
[1763647604760,0.15112,91169.0,91150.0,0.22772788]
[1763647604965,0.15331803,91169.0,91152.0,0.10748]
[1763647606057,0.15331803,91169.0,91159.0,0.010981]
[1763647606455,0.15331803,91169.0,91155.0,0.3608]
[1763647606654,0.15112,91156.0,91145.0,0.3608]
[1763647606854,0.00219803,91146.0,91145.0,0.3608]
[1763647607372,0.3608,91157.0,91156.0,0.15185]
[1763647607657,0.36299803,91157.0,91156.0,0.15185]
[1763647607863,0.15112,91148.0,91147.0,0.00016454]
[1763647608065,0.00219803,91148.0,91147.0,0.00016454]
[1763647608260,0.36299803,91148.0,91147.0,0.15201454]
[1763647608661,0.00219803,91148.0,91147.0,0.15201454]
[1763647608856,0.3608,91157.0,91156.0,0.15185]
[1763647609063,0.00219803,91157.0,91156.0,0.15185]
[1763647609362,0.00016454,91166.0,91165.0,0.1628304]
[1763647609863,0.00236257,91166.0,91165.0,0.15185]
[1763647610062,0.00236257,91166.0,91162.0,0.3608]
[1763647610063,0.0109806,91164.0,91162.0,0.3608]
[1763647610262,0.00219803,91163.0,91162.0,0.3608]
[1763647610458,0.15331803,91163.0,91162.0,0.3608]
[1763647610658,0.00219803,91163.0,91162.0,0.51265]
[1763647610959,0.00016454,91166.0,91165.0,0.15185]
[1763647611366,0.3608,91175.0,91163.0,0.0109806]
[1763647611367,0.3608,91175.0,91174.0,0.15185]
[1763647611666,0.36299803,91175.0,91174.0,0.15185]
[1763647612364,0.3608,91175.0,91174.0,0.15185]
[1763647612565,0.3608,91183.0,91182.0,0.07886]
[1763647612768,0.36299803,91183.0,91182.0,0.15185]
[1763647612971,0.51411803,91183.0,91174.0,0.3608]
[1763647613168,0.36299803,91183.0,91182.0,0.15185]
[1763647613764,0.36399803,91183.0,91182.0,0.15185]
[1763647614270,0.44011803,91183.0,91182.0,0.07299]
[1763647614659,0.44011803,91183.0,91174.0,0.3608]
[1763647615155,0.07612,91167.0,91166.0,0.10744]
[1763647615360,0.15331803,91167.0,91166.0,0.10744]
[1763647615557,0.15112,91166.0,91165.0,0.00016454]
[1763647615760,0.15331803,91166.0,91165.0,0.00016454]
[1763647615957,0.00219803,91166.0,91165.0,0.15201454]
[1763647616171,0.07831803,91166.0,91165.0,0.00016454]
[1763647616367,0.15331803,91166.0,91150.0,0.0109821]
[1763647616576,0.15331803,91166.0,91144.0,0.3608]
[1763647617067,0.3608,91159.0,91144.0,0.3608]
[1763647617268,0.04781,91170.0,91144.0,0.3608]
[1763647617269,0.00219803,91158.0,91157.0,0.5236313]
[1763647617580,0.00219803,91158.0,91157.0,0.6310713]
[1763647617762,0.00016454,91167.0,91166.0,0.0109802]
[1763647618072,0.00016454,91167.0,91166.0,0.5236302]
[1763647618266,0.3608,91188.0,91187.0,0.0839677]
[1763647618475,0.36299803,91188.0,91187.0,0.0839677]
[1763647618874,0.00027411,91206.0,91205.0,0.0109755]
[1763647619061,0.00027411,91206.0,91205.0,0.51265]
[1763647619260,0.00027411,91206.0,91205.0,2.01265]
[1763647619469,0.00247214,91206.0,91205.0,2.01265]
[1763647619974,0.00027411,91206.0,91205.0,1.8608]
[1763647620272,0.000104,91215.0,91214.0,0.15185]
[1763647620474,0.3608,91250.0,91242.0,0.010971]
[1763647620667,0.05846349,91265.0,91244.0,0.0109709]
[1763647620668,0.04994406,91265.0,91244.0,0.0109709]
[1763647620863,0.3608,91266.0,91243.0,0.3608]
[1763647620864,0.07612,91245.0,91243.0,0.3608]
[1763647621180,0.15112,91213.0,91212.0,0.3608]
[1763647621366,0.00219803,91213.0,91205.0,1.5]
[1763647621871,0.3608,91237.0,91212.0,0.3608]
[1763647622069,0.07612,91213.0,91212.0,0.3608]
[1763647622264,0.07831803,91213.0,91212.0,0.3608]
[1763647622465,0.15331803,91213.0,91212.0,0.3608]
[1763647622868,0.15899,91204.0,91203.0,0.00016442]
[1763647623078,0.0848,91190.0,91189.0,0.3608]
[1763647623263,0.00219803,91190.0,91189.0,0.51579]
[1763647623663,0.04844,91205.0,91189.0,0.51579]
[1763647623863,0.00219803,91204.0,91203.0,0.15499]
[1763647624069,0.04844,91222.0,91200.0,0.58852788]
[1763647624265,0.15899,91213.0,91202.0,0.00016442]
[1763647624473,0.0109752,91208.0,91202.0,0.00016442]
[1763647624667,0.16118803,91203.0,91202.0,0.00016442]
[1763647625268,0.00219803,91203.0,91202.0,0.15515442]
[1763647625569,0.00016405,91220.0,91216.0,0.0109741]
[1763647625765,0.00219803,91217.0,91209.0,0.3608]
[1763647625970,0.00219803,91217.0,91214.0,0.0109744]
[1763647626170,0.00219803,91217.0,91213.0,0.0109745]
[1763647626576,0.00219803,91217.0,91209.0,0.3608]
[1763647626577,0.01317223,91217.0,91209.0,0.3608]
[1763647626972,0.00219803,91217.0,91209.0,0.3608]
[1763647627171,0.00219803,91217.0,91216.0,0.07684]
[1763647627479,0.1699649,91210.0,91209.0,0.3608]
[1763647627678,0.0109769,91194.0,91183.0,0.0109782]
[1763647627975,0.04844,91205.0,91183.0,0.0109782]
[1763647627976,0.00219803,91184.0,91183.0,0.0109782]
[1763647628173,0.15899,91183.0,91182.0,0.3608]
[1763647628369,0.16118803,91183.0,91182.0,0.3608]
[1763647628569,0.16118803,91183.0,91175.0,0.3608]
[1763647628570,0.169969,91176.0,91175.0,0.3608]
[1763647628879,0.17216703,91176.0,91175.0,0.3608]
[1763647629477,0.00016452,91185.0,91175.0,0.51579]
[1763647629781,0.15899,91176.0,91175.0,0.3608]
[1763647630078,0.16118803,91176.0,91175.0,0.3608]
[1763647630273,0.00016452,91185.0,91182.0,0.0109783]
[1763647630473,0.00016452,91185.0,91184.0,0.5267681]
[1763647630776,0.0848,91209.0,91208.0,0.0109752]
[1763647630974,0.00219803,91204.0,91190.0,0.18076263]
[1763647631186,0.16118803,91204.0,91203.0,0.3608]
[1763647631777,0.0109759,91202.0,91196.0,0.3608]
[1763647631977,0.16118803,91197.0,91196.0,0.3608]
[1763647632277,0.16118803,91197.0,91189.0,0.0109774]
[1763647632278,0.15899,91190.0,91189.0,0.0109774]
[1763647632483,0.20743,91188.0,91187.0,0.00016452]
[1763647632784,0.15899,91177.0,91170.0,0.00012373]
[1763647632973,0.1699696,91171.0,91170.0,0.00012373]
[1763647633173,0.0848,91155.0,91154.0,0.3608]
[1763647633481,0.0848,91155.0,91145.0,0.0109828]
[1763647633482,0.15899,91145.0,91135.0,0.3608]
[1763647633688,0.0109848,91128.0,91126.0,0.3608]
[1763647633880,0.16118803,91127.0,91117.0,0.3608]
[1763647634085,0.00219803,91127.0,91118.0,0.00016461]
[1763647634382,0.0848,91119.0,91118.0,0.00016461]
[1763647634581,0.00013584,91126.0,91123.0,0.0109854]
[1763647634786,0.00013584,91126.0,91118.0,0.00016461]
[1763647634787,0.0109854,91123.0,91118.0,0.00016461]
[1763647635083,0.00219803,91119.0,91118.0,0.00016461]
[1763647635472,0.16118803,91119.0,91118.0,0.00016461]
[1763647636476,0.00219803,91119.0,91118.0,0.00016461]
[1763647636681,0.16118803,91119.0,91118.0,0.00016461]
[1763647637280,0.00219803,91119.0,91118.0,0.01115061]
[1763647637586,0.1699775,91106.0,91096.0,0.3608]
[1763647637779,0.0109887,91096.0,91087.0,0.3608]
[1763647637982,0.00230603,91095.0,91087.0,0.3608]
[1763647638287,0.00230603,91095.0,91094.0,0.0109889]
[1763647638491,0.00230603,91095.0,91087.0,0.3608]
[1763647638492,0.00230603,91095.0,91089.0,0.0109894]
[1763647638891,0.00230603,91095.0,91092.0,0.0109891]
[1763647640086,0.3608,91130.0,91113.0,0.1659766]
[1763647640280,0.00670163,91114.0,91113.0,0.51579]
[1763647640685,0.0045036,91114.0,91113.0,0.51579]
[1763647641185,0.10756,91137.0,91125.0,0.0109851]
[1763647641386,0.0109843,91132.0,91122.0,0.00016461]
[1763647641592,0.16118803,91123.0,91122.0,0.00016461]
[1763647642392,0.1699765,91114.0,91113.0,0.3608]
[1763647642689,0.00219803,91114.0,91113.0,0.3608]
[1763647643484,0.00219803,91114.0,91113.0,0.3618]
[1763647644087,0.00219803,91114.0,91113.0,0.51679]
[1763647644281,0.00219803,91114.0,91113.0,0.3618]
[1763647644479,0.00219803,91114.0,91113.0,0.3608]
[1763647644682,0.16118803,91114.0,91113.0,0.3608]
[1763647644888,0.2184176,91105.0,91104.0,0.00016461]
[1763647645194,0.2184176,91105.0,91094.0,0.3608]
[1763647645195,0.1699788,91095.0,91094.0,0.3608]
[1763647645383,0.17217683,91095.0,91094.0,0.3608]
[1763647645583,0.0109904,91082.0,91081.0,0.36316]
[1763647645783,0.01318843,91082.0,91081.0,0.36316]
[1763647645985,0.09798843,91082.0,91081.0,0.36316]
[1763647646286,0.17217843,91082.0,91081.0,1.86316]
[1763647646485,0.17217843,91082.0,91081.0,0.36316]
[1763647646879,0.1699811,91076.0,91075.0,0.00013434]
[1763647647081,0.12796,91059.0,91037.0,0.3608]
[1763647647382,0.3608,91045.0,91044.0,0.07684]
[1763647647587,0.36299803,91045.0,91044.0,0.07684]
[1763647648085,0.36310539,91045.0,91044.0,0.07684]
[1763647648483,0.36310539,91045.0,91037.0,0.3608]
[1763647648793,0.36310539,91045.0,91035.0,0.00016471]
[1763647648794,0.0109958,91037.0,91035.0,0.00016471]
[1763647648996,0.06617803,91036.0,91035.0,0.00016471]
[1763647649184,0.49095803,91036.0,91035.0,1.1e-07]
[1763647649984,0.0109969,91028.0,91021.0,0.3608]
[1763647650283,0.00219803,91022.0,91021.0,0.3608]
[1763647650483,0.00232388,91022.0,91021.0,0.53843]
[1763647651893,0.00016471,91031.0,91021.0,0.53843]
[1763647651894,0.00016471,91031.0,91030.0,0.1886266]
[1763647652086,0.3608,91045.0,91035.0,0.188626]
[1763647652286,0.3608,91045.0,91035.0,0.09358]
[1763647652287,0.00219803,91036.0,91035.0,0.09358]
[1763647652496,0.00219803,91036.0,91029.0,0.41395]
[1763647652691,0.0109966,91031.0,91029.0,0.41395]
[1763647652886,0.00219803,91030.0,91029.0,0.41395]
[1763647653191,0.00219803,91030.0,91029.0,0.60142]
[1763647653489,0.00219803,91030.0,91029.0,0.24062]
[1763647654493,0.0109976,91023.0,91021.0,0.001]
[1763647654691,0.0109977,91021.0,91020.0,0.00016471]
[1763647654886,0.10244573,91021.0,91020.0,0.00016471]
[1763647655092,0.0110002,91001.0,91000.0,8.301e-05]
[1763647655289,0.01319823,91001.0,91000.0,8.301e-05]
[1763647655487,0.46324823,91001.0,91000.0,8.301e-05]
[1763647655688,0.0110023,90983.0,90982.0,0.45438]
[1763647655988,0.0110023,90983.0,90961.0,0.3608]
[1763647655989,0.0110043,90967.0,90961.0,0.3608]
[1763647656194,0.00219803,90967.0,90966.0,0.09385483]
[1763647656395,0.3608,90983.0,90982.0,0.09358]
[1763647656587,0.36299803,90983.0,90982.0,0.18747]
[1763647656789,0.36308953,90983.0,90982.0,0.18747]
[1763647657291,0.0110033,90975.0,90974.0,0.09358]
[1763647657491,0.37400143,90975.0,90952.0,0.3608]
[1763647657685,0.36299803,90975.0,90967.0,0.0110043]
[1763647657886,0.36299803,90975.0,90960.0,0.18076263]
[1763647657887,0.0110034,90974.0,90960.0,0.18076263]
[1763647658083,0.00219803,90967.0,90966.0,0.18774483]
[1763647659094,0.01320233,90967.0,90966.0,0.00127483]
[1763647659401,0.00219803,90967.0,90966.0,0.00127483]
[1763647659592,0.00219803,90967.0,90966.0,0.09485483]
[1763647659892,0.3608,90975.0,90974.0,0.18747]
[1763647660096,0.36299803,90975.0,90974.0,0.18747]
[1763647660594,0.0110043,90967.0,90966.0,0.00127483]
[1763647660786,0.37400233,90967.0,90966.0,0.00127483]
[1763647660983,0.0110054,90958.0,90957.0,0.00011042]
[1763647661183,0.36308953,90958.0,90957.0,0.00011042]
[1763647661592,0.36308953,90958.0,90957.0,0.18758042]
[1763647661798,0.36308953,90958.0,90957.0,0.00011042]
[1763647662185,0.54168953,90958.0,90957.0,0.00011042]
[1763647662491,0.54168953,90958.0,90957.0,0.00111042]
[1763647663290,0.90248953,90958.0,90957.0,4.2e-07]
[1763647663493,1.01020953,90958.0,90957.0,4.2e-07]
[1763647665094,0.1896061,90952.0,90951.0,0.0004]
[1763647665294,0.18079803,90952.0,90951.0,0.0004]
[1763647665492,0.28851803,90952.0,90951.0,0.0004]
[1763647665692,0.18079803,90952.0,90951.0,0.0004]
[1763647665893,0.10991803,90952.0,90951.0,0.0004]
[1763647666493,0.28851803,90952.0,90951.0,0.0004]
[1763647668206,0.28851803,90952.0,90939.0,9.615e-05]
[1763647668207,0.1896062,90951.0,90950.0,6.71522]
[1763647668503,0.19188568,90951.0,90950.0,4.56875095]
[1763647668688,0.59188568,90951.0,90950.0,4.56875095]
[1763647669092,1.31348568,90951.0,90950.0,4.45439188]
[1763647669293,1.31348568,90951.0,90950.0,3.52397099]
[1763647670000,1.31348568,90951.0,90950.0,3.63389099]
[1763647670198,1.31348568,90951.0,90950.0,3.52397099]
[1763647670499,0.90247948,90951.0,90950.0,3.52397099]
[1763647670707,1.01019948,90951.0,90950.0,3.52397099]
[1763647670997,1.01019948,90951.0,90950.0,3.63389099]
[1763647671205,0.72387948,90951.0,90950.0,3.52397099]
[1763647671503,0.83159948,90951.0,90950.0,3.52397099]
[1763647671700,0.72387948,90951.0,90950.0,3.52397099]
[1763647671894,0.83159948,90951.0,90950.0,3.52397099]
[1763647672094,0.83159948,90951.0,90950.0,3.63389099]
[1763647672302,0.83159948,90951.0,90950.0,3.52397099]
[1763647673105,0.83159948,90951.0,90950.0,3.63389099]
[1763647673296,1.23159948,90951.0,90950.0,3.63389099]
[1763647673598,1.12388953,90951.0,90950.0,3.63389099]
[1763647673796,1.23160953,90951.0,90950.0,3.52397099]
[1763647673992,1.23160953,90951.0,90950.0,3.63389099]
[1763647674199,1.23151803,90951.0,90950.0,2.0437901]
[1763647674390,0.83151803,90951.0,90950.0,2.0437901]
[1763647674592,1.23151803,90951.0,90950.0,2.0437901]
[1763647674798,0.72379803,90951.0,90950.0,2.0437901]
[1763647674992,1.23160953,90951.0,90950.0,2.1537101]
[1763647675195,1.23151803,90951.0,90950.0,0.86248921]
[1763647675401,0.50991803,90951.0,90950.0,0.86248921]
[1763647675601,1.25655544,90951.0,90950.0,0.75256921]
[1763647675797,1.25659544,90951.0,90950.0,0.75256921]
[1763647676094,0.83155803,90951.0,90939.0,9.615e-05]
[1763647676306,0.3608,90940.0,90939.0,9.615e-05]
[1763647676496,0.47075803,90940.0,90939.0,9.615e-05]
[1763647676696,0.47084953,90940.0,90939.0,9.615e-05]
[1763647677405,0.47075803,90940.0,90926.0,0.00027495]
[1763647677608,0.3608,90927.0,90926.0,0.00027495]
[1763647677804,0.47071803,90927.0,90926.0,0.00027495]
[1763647678105,0.47071803,90927.0,90917.0,0.00471616]
[1763647678306,0.3608,90918.0,90865.0,0.41232]
[1763647678604,0.36299803,90887.0,90886.0,0.18774507]
[1763647678807,0.47083508,90887.0,90886.0,0.18774507]
[1763647679009,0.47083508,90887.0,90886.0,0.73750507]
[1763647679305,0.47083508,90887.0,90886.0,0.55003507]
[1763647679506,0.36307508,90887.0,90886.0,0.55003507]
[1763647680006,0.47095508,90887.0,90886.0,0.55003507]
[1763647680514,0.47099508,90887.0,90886.0,0.64361507]
[1763647681004,0.47103508,90887.0,90886.0,0.64361507]
[1763647681208,0.36307508,90887.0,90886.0,0.55003507]
[1763647681400,0.4713722,90887.0,90886.0,0.55003507]
[1763647681596,0.8713722,90887.0,90886.0,0.55003507]
[1763647681807,0.47127803,90887.0,90886.0,0.55003507]
[1763647682104,0.49635373,90887.0,90886.0,0.55003507]
[1763647682502,0.89639373,90887.0,90886.0,0.55003507]
[1763647682906,0.89639373,90887.0,90846.0,0.00027519]
[1763647682907,1.25719373,90887.0,90846.0,0.00027519]
[1763647683209,0.7216,90860.0,90846.0,0.00027519]
[1763647683401,0.83228217,90860.0,90846.0,0.00027519]
[1763647683801,0.83228217,90860.0,90846.0,0.15816519]
[1763647683998,0.72392217,90860.0,90859.0,0.55015299]
[1763647684210,0.83232217,90860.0,90859.0,0.00011792]
[1763647684509,0.83232217,90860.0,90846.0,0.00027519]
[1763647684697,0.3608,90847.0,90846.0,0.00027519]
[1763647684902,0.36309479,90847.0,90846.0,0.50552519]
[1763647685102,0.00229479,90847.0,90846.0,0.50552519]
[1763647685304,0.00229479,90847.0,90846.0,1.05556026]
[1763647685612,0.00229479,90847.0,90846.0,0.55031026]
[1763647685813,0.10877676,90847.0,90846.0,1.05556026]
[1763647686002,0.00229479,90847.0,90846.0,1.05556026]
[1763647686198,9.676e-05,90847.0,90846.0,1.45556026]
[1763647686404,0.10868,90860.0,90859.0,0.34736]
[1763647686702,0.3608,90890.0,90878.0,0.34736]
[1763647686998,0.00219803,90889.0,90888.0,0.34736]
[1763647687199,0.3608,90890.0,90889.0,0.34736]
[1763647687406,0.00228083,90890.0,90889.0,0.89729831]
[1763647687601,0.10872,90897.0,90896.0,0.34736]
[1763647687808,0.10872,90897.0,90896.0,0.89729831]
[1763647688002,0.11091803,90897.0,90896.0,0.89729831]
[1763647688608,0.11091803,90897.0,90887.0,0.00016509]
[1763647688810,0.00219803,90897.0,90887.0,0.00016509]
[1763647689004,0.00219803,90897.0,90896.0,0.34736]
[1763647689322,0.11087803,90897.0,90896.0,0.89729831]
[1763647689904,0.3608,90900.0,90899.0,0.34736]
[1763647690105,0.00016509,90906.0,90905.0,0.34736]
[1763647690305,0.10884509,90906.0,90905.0,0.34736]
[1763647690517,0.10884509,90906.0,90905.0,0.89729831]
[1763647690518,0.11104312,90906.0,90905.0,0.89729831]
[1763647690717,0.11104312,90906.0,90905.0,0.34736]
[1763647690916,0.00236312,90906.0,90905.0,0.89729831]
[1763647691116,0.11100312,90906.0,90905.0,0.89729831]
[1763647691311,0.3608,90917.0,90916.0,0.25736]
[1763647691619,0.47163803,90917.0,90916.0,0.80729831]
[1763647691804,0.47163803,90917.0,90916.0,0.54993831]
[1763647692007,0.47193803,90917.0,90916.0,0.54993831]
[1763647692207,0.47193803,90917.0,90900.0,0.15789]
[1763647692405,0.360965,90918.0,90916.0,0.89729831]
[1763647692608,0.10864,90921.0,90920.0,0.34736]
[1763647692908,0.000165,90926.0,90925.0,0.3583693]
[1763647693215,0.10864,90933.0,90932.0,0.34736]
[1763647693406,0.47163803,90933.0,90932.0,0.34736]
[1763647693605,0.11083803,90933.0,90932.0,0.89729831]
[1763647693918,0.3608,90945.0,90944.0,0.25736]
[1763647694222,0.3608,90945.0,90908.0,0.3608]
[1763647694223,0.10896,90936.0,90908.0,0.3608]
[1763647694513,0.3608,90929.0,90908.0,0.3608]
[1763647694722,0.00219803,90928.0,90908.0,0.3608]
[1763647695112,0.00219803,90928.0,90927.0,0.25736]
[1763647695313,0.20407803,90928.0,90927.0,0.54993831]
[1763647695512,0.20407803,90928.0,90914.0,0.000165]
[1763647695513,0.10896,90915.0,90914.0,0.000165]
[1763647695717,0.67347803,90915.0,90914.0,0.000165]
[1763647695914,0.36299803,90915.0,90914.0,0.257525]
[1763647696112,0.47159803,90915.0,90914.0,0.80746331]
[1763647696317,0.47159803,90915.0,90914.0,0.89746331]
[1763647696820,0.47159803,90915.0,90914.0,0.55010331]
[1763647697716,0.58055803,90915.0,90914.0,0.55010331]
[1763647697921,0.67347803,90915.0,90914.0,0.000165]
[1763647698129,0.36299803,90915.0,90914.0,0.89746331]
[1763647698322,0.3608,90939.0,90931.0,0.34736]
[1763647698511,0.10856,90934.0,90931.0,0.89729831]
[1763647698819,0.00236303,90932.0,90931.0,0.34736]
[1763647699119,0.00236303,90932.0,90931.0,0.89729831]
[1763647699321,0.000165,90932.0,90931.0,0.90830691]
[1763647699623,0.10856,90948.0,90934.0,0.15789]
[1763647699824,0.00219803,90947.0,90946.0,0.3608]
[1763647700519,0.00219803,90947.0,90946.0,0.91073831]
[1763647700909,0.00219803,90947.0,90946.0,1.16809831]
[1763647701516,0.00219803,90947.0,90946.0,0.91073831]
[1763647701713,0.00219803,90947.0,90946.0,0.3608]
[1763647702114,0.00219803,90947.0,90946.0,1.25809831]
[1763647702731,0.35519803,90947.0,90937.0,0.000165]
[1763647702917,0.353,90944.0,90943.0,0.54993831]
[1763647703117,0.35519803,90944.0,90937.0,0.000165]